bitfinex/quotes_ETHUSD_20250731
["timestamp","ask_amount","ask_price","bid_price","bid_amount"]
[1753973639025,0.132,3779.4,3779.2,4.134]
[1753973639790,0.132,3779.4,3779.3,2.64599264]
[1753973640121,0.132,3779.4,3779.3,0.4614]
[1753973640418,0.132,3779.4,3779.2,6.78005894]
[1753973640623,0.132,3779.4,3779.2,4.134]
[1753973640922,0.132,3779.4,3779.2,7.24145545]
[1753973641129,0.002,3779.9,3779.2,7.24145545]
[1753973641130,0.002,3779.9,3779.8,2.64564262]
[1753973641327,0.002,3779.9,3779.8,4.196]
[1753973641920,6.621,3780.9,3779.8,4.196]
[1753973641921,0.8322,3781.3,3780.2,5.64536267]
[1753973642102,0.9425,3781.7,3780.2,11.62586267]
[1753973642304,0.13398424,3782.3,3780.2,12.55546267]
[1753973642305,0.8139,3781.8,3780.2,12.55546267]
[1753973642719,2.64349842,3782.9,3780.2,12.55546267]
[1753973642720,0.8139,3782.4,3780.4,0.7885]
[1753973642867,0.8139,3782.4,3782.0,2.64404491]
[1753973643048,0.8139,3782.4,3782.1,5.193]
[1753973643250,0.7507,3782.8,3782.3,2.64386881]
[1753973643449,2.64368367,3782.7,3782.4,5.235]
[1753973643622,0.7507,3782.8,3782.4,5.235]
[1753973643623,1.54628896,3782.6,3782.4,5.235]
[1753973643824,0.9425,3782.5,3782.4,5.235]
[1753973644030,0.4705,3782.5,3782.4,5.235]
[1753973644372,2.64372894,3782.6,3782.4,5.235]
[1753973644525,0.4705,3782.5,3782.4,5.235]
[1753973644721,0.85698976,3782.5,3782.4,5.235]
[1753973645523,0.38648976,3782.5,3782.4,5.235]
[1753973645955,0.55,3782.6,3782.4,5.235]
[1753973646173,4.13625413,3782.5,3782.4,5.235]
[1753973646744,1.4925,3782.5,3782.4,5.235]
[1753973646940,4.13625413,3782.5,3782.4,5.235]
[1753973647695,0.55,3782.5,3782.4,5.235]
[1753973647888,9.26026522,3783.2,3782.4,5.235]
[1753973647889,6.617,3783.2,3783.1,2.64333483]
[1753973648183,4.64695563,3784.7,3783.1,4.946]
[1753973648184,2.64293755,3783.7,3783.1,4.946]
[1753973648365,2.64293755,3783.7,3782.7,0.4614]
[1753973648366,0.9425,3783.8,3783.2,4.828]
[1753973648567,2.64291566,3783.7,3783.2,4.828]
[1753973648768,3.19319509,3783.3,3783.2,4.828]
[1753973648977,2.64319509,3783.3,3783.2,4.828]
[1753973649182,1.30504157,3783.6,3783.2,4.828]
[1753973649378,0.9425,3783.6,3783.2,4.828]
[1753973649696,2.64298948,3783.6,3783.2,4.828]
[1753973649883,0.55,3783.8,3783.2,4.828]
[1753973650227,3.19319509,3783.3,3783.2,5.2894]
[1753973650360,3.83182051,3783.3,3783.2,4.828]
[1753973650559,5.59262051,3783.3,3783.2,4.828]
[1753973651198,5.72462051,3783.3,3783.2,4.828]
[1753973651397,2.64344486,3783.0,3782.6,0.132]
[1753973651558,2.64352485,3782.9,3782.7,4.666]
[1753973651894,3.19354446,3782.8,3782.7,4.666]
[1753973652059,3.32554446,3782.8,3782.7,4.666]
[1753973652597,0.682,3782.8,3782.7,4.666]
[1753973653357,3.32554446,3782.8,3782.7,4.666]
[1753973653598,4.26804446,3782.8,3782.7,4.666]
[1753973653759,5.01370961,3782.8,3782.7,4.666]
[1753973654513,4.88170961,3782.8,3782.7,4.666]
[1753973654812,1.29566515,3782.8,3782.7,4.666]
[1753973654973,0.8084,3784.0,3782.8,0.7612]
[1753973655172,2.64308127,3783.5,3782.9,4.9454]
[1753973655380,0.55,3783.3,3782.9,4.9454]
[1753973655804,0.55,3783.2,3782.9,4.9454]
[1753973656004,0.55,3782.8,3782.3,0.4614]
[1753973656312,0.55,3782.8,3782.4,7.41926582]
[1753973656487,0.55,3782.8,3782.4,6.93076582]
[1753973656688,0.55,3782.8,3782.5,0.9255]
[1753973656909,2.64334695,3783.1,3782.6,4.7755]
[1753973656910,0.55,3782.9,3782.6,4.7755]
[1753973657111,1.07911131,3782.9,3782.6,4.287]
[1753973657287,0.55,3783.0,3782.6,4.287]
[1753973657487,0.55,3782.8,3782.6,4.287]
[1753973657750,0.55,3782.8,3782.6,4.7755]
[1753973658018,3.19361434,3782.7,3782.6,4.287]
[1753973658176,2.2402,3782.7,3782.1,6.355]
[1753973658511,0.55,3782.3,3782.1,6.355]
[1753973658873,0.55,3782.3,3782.2,4.126]
[1753973659074,4.12146383,3782.2,3782.1,6.355]
[1753973659296,3.19396383,3782.2,3782.1,10.481]
[1753973660214,3.77774772,3782.2,3782.1,10.481]
[1753973660917,4.70524772,3782.2,3782.1,10.481]
[1753973661121,4.70524772,3782.2,3781.2,3.13315555]
[1753973661122,0.55,3781.9,3781.2,3.13315555]
[1753973661320,3.19417356,3781.9,3781.3,4.126]
[1753973661754,0.55,3781.9,3781.3,4.126]
[1753973661954,2.64381685,3782.5,3781.7,2.64430651]
[1753973662108,0.55,3782.5,3781.8,4.6145]
[1753973662452,0.55,3782.2,3781.8,4.6145]
[1753973662655,0.55,3782.2,3781.9,0.4885]
[1753973662946,0.55,3782.3,3782.0,4.126]
[1753973663107,0.55,3782.1,3782.0,4.126]
[1753973663310,0.55,3782.5,3782.0,4.126]
[1753973663620,0.55,3782.8,3782.2,2.64394944]
[1753973663828,0.55,3783.0,3782.3,7.25837842]
[1753973663829,2.64345176,3783.0,3782.3,7.25837842]
[1753973664007,2.64334961,3783.1,3782.4,2.64380617]
[1753973664314,3.17201054,3783.1,3782.5,4.126]
[1753973664514,0.132,3782.6,3782.5,4.126]
[1753973664928,0.682,3782.6,3782.5,4.6145]
[1753973666807,0.55,3782.5,3782.0,0.4885]
[1753973667003,0.55,3782.3,3781.7,0.759]
[1753973667238,0.55,3782.1,3781.8,4.126]
[1753973667420,0.682,3782.1,3781.9,4.126]
[1753973667606,0.682,3782.1,3781.9,4.6145]
[1753973667834,0.682,3782.1,3782.0,0.4885]
[1753973668003,0.682,3782.1,3782.0,4.126]
[1753973668353,0.682,3782.1,3782.0,4.125]
[1753973669152,0.55,3781.9,3781.4,3.40590595]
[1753973669447,0.55,3781.6,3781.5,7.25795325]
[1753973669646,3.193905,3782.3,3781.6,2.64438332]
[1753973669808,0.132,3781.9,3781.5,7.20645325]
[1753973670004,0.132,3781.9,3781.7,0.4885]
[1753973670240,0.55,3782.3,3781.7,0.4885]
[1753973670241,3.7626,3782.7,3781.9,2.64415591]
[1753973670444,0.132,3782.4,3782.0,2.64404935]
[1753973670646,0.132,3782.4,3782.1,4.6135]
[1753973670830,0.37582923,3782.4,3782.1,4.6135]
[1753973671035,0.55,3782.3,3782.1,4.6135]
[1753973671221,0.55,3782.3,3782.1,4.125]
[1753973671545,0.55,3782.1,3781.6,3.13285889]
[1753973671718,0.24388579,3782.0,3781.7,4.125]
[1753973671918,2.64404506,3782.1,3781.7,4.6135]
[1753973672124,0.79427689,3782.0,3781.7,4.6135]
[1753973672319,0.55,3782.0,3781.8,0.4885]
[1753973672520,0.132,3782.2,3781.9,4.6135]
[1753973672726,0.24439506,3782.1,3781.9,4.6135]
[1753973672910,0.132,3782.2,3782.0,0.4885]
[1753973673112,0.132,3782.2,3781.9,4.125]
[1753973673113,0.24439881,3782.1,3781.9,4.125]
[1753973673611,0.24439881,3782.1,3781.7,2.77628851]
[1753973673810,0.24439881,3782.0,3781.8,4.125]
[1753973674014,0.132,3782.2,3781.8,4.125]
[1753973674211,0.24437152,3782.1,3781.8,6.76918522]
[1753973674410,0.7626,3782.7,3781.8,6.76918522]
[1753973674411,0.55,3782.6,3782.2,2.64390165]
[1753973674637,0.24436063,3782.5,3782.3,4.125]
[1753973674855,0.24436063,3782.4,3782.1,0.437]
[1753973675044,2.64340712,3783.0,3782.3,0.437]
[1753973675355,0.132,3782.8,3782.6,2.64368124]
[1753973675558,0.132,3782.8,3782.7,6.76861434]
[1753973675875,6.616,3783.8,3782.7,6.76861434]
[1753973675876,0.002,3783.5,3783.0,5.6434047]
[1753973676081,0.002,3783.5,3783.4,11.57691481]
[1753973676373,0.04,3784.9,3783.8,2.64284581]
[1753973676572,0.41639962,3784.9,3783.8,8.26624581]
[1753973676728,0.24439962,3784.8,3783.8,9.32374581]
[1753973678277,0.24439962,3784.8,3783.8,9.52001197]
[1753973678486,0.172,3784.9,3783.8,9.52001197]
[1753973678768,0.24438179,3784.8,3783.8,9.52001197]
[1753973680671,2.8865444,3784.8,3783.8,9.52001197]
[1753973680865,2.64216261,3784.8,3783.8,9.52001197]
[1753973681187,0.172,3784.9,3783.8,9.52001197]
[1753973681792,2.81409776,3784.9,3783.8,9.52001197]
[1753973682134,0.172,3784.9,3783.8,9.52001197]
[1753973682869,0.042,3783.9,3783.8,12.52001197]
[1753973685369,0.042,3783.9,3783.8,21.45380155]
[1753973685670,0.002,3784.3,3784.2,6.45946646]
[1753973685975,0.002,3784.3,3784.2,11.39946646]
[1753973686280,0.002,3784.3,3784.2,12.31916646]
[1753973686966,0.002,3784.3,3784.2,11.87256646]
[1753973687333,0.002,3784.3,3784.2,12.31916646]
[1753973689045,0.002,3784.3,3784.2,11.39946646]
[1753973689456,0.002,3784.3,3784.2,8.7569]
[1753973689945,0.002,3784.3,3784.2,10.58256646]
[1753973690351,0.002,3784.3,3784.2,11.05566646]
[1753973690537,0.002,3784.3,3784.2,11.37416646]
[1753973692078,0.002,3784.3,3784.2,8.7316]
[1753973692250,0.002,3784.3,3784.2,7.94]
[1753973692455,0.4595,3784.3,3784.2,10.58256646]
[1753973692657,0.002,3784.3,3784.2,10.58256646]
[1753973693179,0.002,3784.3,3784.2,7.94]
[1753973693343,0.9525,3784.3,3784.2,4.94]
[1753973693677,0.9525,3784.3,3784.2,4.808]
[1753973694345,0.9525,3784.3,3784.2,7.45056646]
[1753973695481,0.002,3784.3,3784.2,7.45056646]
[1753973698681,0.9525,3784.3,3784.2,4.439]
[1753973698987,0.9525,3784.3,3784.2,7.08156646]
[1753973699199,0.9525,3784.3,3784.2,4.439]
[1753973700002,0.9525,3784.3,3784.2,7.08156646]
[1753973700199,0.9525,3784.3,3784.2,4.439]
[1753973700361,1.5025,3784.3,3784.2,4.439]
[1753973701176,5.06449663,3784.3,3784.2,4.439]
[1753973701403,5.06449663,3784.3,3783.8,0.32826616]
[1753973701404,2.64290562,3783.8,3783.1,2.64329185]
[1753973701606,2.64290562,3783.8,3782.9,2.64346508]
[1753973701607,0.55,3783.6,3783.4,0.132]
[1753973701770,0.55,3783.4,3783.2,4.123]
[1753973701970,3.19317066,3783.4,3783.2,4.123]
[1753973702169,4.14369509,3783.3,3783.2,4.123]
[1753973702473,3.19327469,3783.2,3782.5,2.64374447]
[1753973702674,2.64345213,3783.0,3782.6,4.123]
[1753973702875,0.55,3782.8,3782.6,4.123]
[1753973703070,0.9505,3782.7,3782.1,0.04]
[1753973703298,0.55,3782.6,3782.2,4.123]
[1753973703489,0.55,3782.4,3782.2,4.123]
[1753973703687,1.0075,3782.4,3782.2,4.123]
[1753973703993,0.55,3783.3,3782.9,2.64343593]
[1753973704183,0.55,3783.3,3783.0,4.123]
[1753973704382,0.55,3783.3,3782.6,3.11674402]
[1753973704383,3.65069605,3783.3,3782.6,3.11674402]
[1753973704566,0.55,3783.1,3782.1,0.23632479]
[1753973704772,0.55,3782.9,3782.3,5.64387803]
[1753973705111,1.043,3782.9,3782.4,4.123]
[1753973705274,0.55,3782.9,3782.4,4.123]
[1753973705471,0.9505,3782.8,3782.4,4.123]
[1753973705676,0.55,3782.9,3782.5,4.124]
[1753973705677,3.59412417,3782.7,3782.5,4.124]
[1753973705876,2.64362417,3782.7,3782.5,4.124]
[1753973706109,0.55,3782.5,3782.2,0.001]
[1753973706311,0.55,3782.5,3782.3,4.123]
[1753973706809,0.55,3782.3,3782.2,0.001]
[1753973707014,0.55,3782.3,3782.2,4.124]
[1753973707187,4.14439392,3782.3,3782.2,4.124]
[1753973707912,4.14439392,3782.3,3782.2,4.125]
[1753973708313,4.90143878,3782.3,3782.2,0.001]
[1753973708515,5.65813878,3782.3,3782.2,0.001]
[1753973708880,6.95066383,3782.2,3782.1,0.04]
[1753973709076,7.90116383,3782.2,3782.1,0.04]
[1753973709286,9.95754955,3782.2,3782.1,0.04]
[1753973710117,0.55,3781.7,3780.6,4.124]
[1753973710279,0.55,3781.3,3780.6,4.124]
[1753973710478,3.59516306,3781.2,3780.6,4.124]
[1753973710881,0.55,3781.0,3780.6,4.124]
[1753973711413,3.65231097,3781.0,3780.6,4.124]
[1753973711716,0.55,3781.3,3780.7,0.9197]
[1753973711918,0.55,3781.3,3780.8,2.64487294]
[1753973712125,0.132,3781.2,3780.8,2.64487294]
[1753973712280,0.132,3781.2,3780.8,3.11797294]
[1753973712482,0.132,3781.2,3780.8,2.64487294]
[1753973712791,0.132,3781.2,3780.9,0.4731]
[1753973713005,0.132,3781.2,3781.0,4.124]
[1753973713521,1.0075,3781.1,3780.6,0.132]
[1753973713719,3.19488296,3780.9,3780.7,4.124]
[1753973713922,3.19488296,3780.9,3780.3,0.001]
[1753973713923,0.55,3780.7,3780.3,2.64629062]
[1753973714218,0.55,3780.7,3780.3,0.001]
[1753973714219,3.32722272,3780.4,3780.3,0.001]
[1753973714585,4.27772272,3780.4,3780.3,0.001]
[1753973715719,1.6325,3780.4,3780.3,0.001]
[1753973715926,1.1395,3780.4,3780.3,0.001]
[1753973716222,0.132,3780.6,3780.3,0.4653]
[1753973716422,0.132,3780.6,3780.4,0.4643]
[1753973716628,0.132,3780.6,3780.5,2.64515275]
[1753973716926,0.132,3780.8,3780.7,2.64500372]
[1753973717099,0.132,3780.8,3780.7,7.69500372]
[1753973717523,0.132,3780.8,3780.7,4.127]
[1753973717888,0.132,3780.8,3780.3,0.001]
[1753973717889,0.55,3780.6,3780.3,0.001]
[1753973718039,0.55,3780.6,3780.4,2.64522272]
[1753973718333,0.7824,3780.7,3780.3,0.001]
[1753973718334,0.682,3780.4,3780.3,0.001]
[1753973719427,0.132,3780.4,3780.3,2.6462927]
[1753973719611,0.682,3780.6,3780.3,0.4653]
[1753973719801,0.682,3780.6,3780.5,2.64515275]
[1753973720003,0.682,3780.6,3780.5,7.23745275]
[1753973720414,0.7548,3781.1,3780.5,4.5923]
[1753973720709,0.682,3780.8,3780.7,2.64501282]
[1753973720923,0.132,3780.8,3780.7,6.77301282]
[1753973721108,0.55,3781.3,3780.8,2.6448977]
[1753973721314,0.132,3781.0,3780.8,2.6448977]
[1753973721646,0.132,3781.0,3780.9,2.64487291]
[1753973721854,0.132,3781.0,3780.7,7.23729342]
[1753973722054,0.132,3781.0,3780.3,0.133]
[1753973722361,0.132,3780.7,3780.4,6.77216437]
[1753973722912,0.132,3780.7,3780.4,4.127]
[1753973723111,0.132,3780.7,3780.4,6.77220001]
[1753973723352,0.132,3780.7,3780.4,4.127]
[1753973723536,1.0114,3780.6,3780.4,4.127]
[1753973723739,1.0114,3780.6,3780.5,2.64515275]
[1753973723740,0.55,3780.6,3780.5,2.64515275]
[1753973724146,0.55,3780.6,3780.5,4.127]
[1753973724331,0.55,3780.6,3780.5,6.77215275]
[1753973725056,0.55,3780.6,3780.5,7.23645275]
[1753973725213,0.132,3780.7,3780.6,2.64508279]
[1753973725417,0.682,3780.7,3780.6,3.56808279]
[1753973725844,0.682,3781.0,3780.9,2.64480697]
[1753973726149,0.132,3781.2,3781.1,2.64469416]
[1753973726352,0.132,3781.2,3781.1,6.77169416]
[1753973726552,0.132,3781.2,3781.1,7.23599416]
[1753973726852,0.682,3781.2,3781.1,7.23599416]
[1753973727057,0.132,3781.2,3781.1,7.23599416]
[1753973727258,0.134,3781.6,3781.1,4.259]
[1753973727461,3.19463938,3781.3,3781.2,4.127]
[1753973727614,0.132,3780.9,3780.4,3.24147374]
[1753973727815,0.132,3780.9,3780.5,4.127]
[1753973728636,0.132,3780.9,3780.5,6.77213907]
[1753973729026,0.682,3780.9,3780.8,2.64494286]
[1753973729220,0.682,3780.9,3780.8,4.127]
[1753973729947,0.682,3780.9,3780.8,4.5913]
[1753973730124,0.55,3781.5,3780.8,7.69494286]
[1753973730321,0.132,3781.2,3780.9,0.4643]
[1753973730522,0.132,3781.2,3780.8,4.127]
[1753973730726,0.132,3781.2,3780.9,0.4643]
[1753973730971,0.002,3781.6,3781.0,3.56780093]
[1753973731132,0.134,3781.6,3781.3,2.64455133]
[1753973731330,0.134,3781.6,3781.4,4.127]
[1753973731563,0.134,3781.6,3781.4,6.77151647]
[1753973731750,0.134,3781.6,3781.4,4.5913]
[1753973732362,0.134,3781.6,3781.4,7.23581587]
[1753973732562,0.002,3781.6,3781.5,0.4643]
[1753973732933,0.002,3781.6,3781.5,4.00863677]
[1753973733245,0.002,3781.6,3781.5,4.14914703]
[1753973733771,0.002,3781.6,3781.5,4.14063677]
[1753973733981,0.002,3781.6,3781.5,3.87585776]
[1753973734188,0.002,3781.6,3781.5,0.5963]
[1753973734468,0.002,3781.6,3781.5,3.24075325]
[1753973734832,0.002,3781.6,3781.5,0.132]
[1753973735172,0.002,3781.6,3781.5,4.126]
[1753973736066,0.002,3781.6,3781.5,6.77045325]
[1753973736268,0.002,3781.6,3781.5,4.126]
[1753973736569,0.002,3781.6,3781.5,4.5903]
[1753973736790,0.002,3781.6,3781.5,7.23475325]
[1753973736989,0.002,3781.6,3781.5,7.69345325]
[1753973737191,0.002,3781.6,3781.5,7.23475325]
[1753973738053,0.002,3781.6,3781.5,8.50075325]
[1753973738895,0.002,3781.6,3781.5,3.91605325]
[1753973739066,0.002,3781.6,3781.5,7.57775325]
[1753973739275,0.002,3781.6,3781.5,4.126]
[1753973739598,1.6158,3781.6,3781.5,4.126]
[1753973739891,0.55,3781.5,3781.1,2.64466598]
[1753973740094,0.55,3781.5,3781.2,4.126]
[1753973740426,0.682,3781.3,3781.2,4.126]
[1753973742071,1.6138,3781.3,3780.7,0.132]
[1753973742307,1.6138,3781.3,3780.4,0.4643]
[1753973742308,0.682,3780.9,3780.4,2.77718048]
[1753973742505,0.682,3780.9,3780.5,6.77114926]
[1753973742810,0.682,3780.9,3780.6,0.4643]
[1753973743111,0.132,3780.9,3780.8,2.64494286]
[1753973743275,2.64452169,3781.5,3780.9,0.8098]
[1753973743600,2.64452169,3781.5,3781.0,4.126]
[1753973743601,0.132,3781.2,3781.0,4.126]
[1753973743971,1.0114,3781.1,3781.0,4.126]
[1753973745809,0.55,3781.1,3781.0,4.126]
[1753973747009,0.132,3781.2,3781.1,2.64473301]
[1753973747387,0.002,3781.6,3781.5,2.64445325]
[1753973747581,0.002,3781.6,3781.5,7.59556351]
[1753973747949,0.002,3781.6,3781.5,8.07395325]
[1753973748114,0.002,3781.6,3781.5,6.77045325]
[1753973748405,0.002,3781.6,3781.5,7.25735325]
[1753973749070,0.002,3781.6,3781.5,3.13135325]
[1753973749281,0.002,3781.6,3781.5,7.25735325]
[1753973750178,0.002,3781.6,3781.5,4.6129]
[1753973750390,0.002,3781.6,3781.5,6.77045325]
[1753973750826,0.002,3781.6,3781.5,7.25735325]
[1753973751177,0.002,3781.6,3781.5,4.118542]
[1753973751405,0.552,3781.6,3781.5,4.126]
[1753973751590,1.61873,3781.6,3781.5,4.126]
[1753973752321,1.61873,3781.6,3781.0,2.64579774]
[1753973752322,4.26311839,3781.6,3781.0,0.001]
[1753973752625,0.55,3781.2,3781.1,4.126]
[1753973753379,1.4836,3781.2,3781.1,4.126]
[1753973753584,0.55,3781.2,3781.1,4.126]
[1753973754704,0.55,3781.2,3781.0,0.001]
[1753973754917,0.55,3781.2,3781.1,4.126]
[1753973755461,3.71311498,3781.6,3781.1,4.126]
[1753973755462,0.552,3781.6,3781.1,4.6129]
[1753973755627,0.552,3781.6,3781.1,7.2576127]
[1753973756192,0.002,3781.6,3781.5,2.64445325]
[1753973756405,0.002,3781.6,3781.5,4.126]
[1753973756605,0.002,3781.6,3781.5,4.6129]
[1753973756805,0.002,3781.6,3781.5,7.25735325]
[1753973756997,0.002,3781.6,3781.5,7.70785325]
[1753973757301,0.002,3781.6,3781.5,7.25735325]
[1753973757503,0.002,3781.6,3781.5,7.83985325]
[1753973758132,0.002,3781.6,3781.5,7.38935325]
[1753973758505,1e-08,3781.6,3781.5,7.38935325]
[1753973759007,1e-08,3781.6,3781.5,7.83985325]
[1753973759844,1e-08,3781.6,3781.5,7.38935325]
[1753973760237,1e-08,3781.6,3781.5,0.132]
[1753973760438,1e-08,3781.6,3781.5,4.125]
[1753973760618,1e-08,3781.6,3781.5,6.76945325]
[1753973761848,1e-08,3781.6,3781.5,7.70685325]
[1753973762034,1e-08,3781.6,3781.5,7.83885325]
[1753973762237,1e-08,3781.6,3781.0,0.001]
[1753973762435,1e-08,3781.6,3781.3,0.132]
[1753973762607,0.55,3781.5,3781.0,0.001]
[1753973762990,1.0656,3781.4,3781.0,0.001]
[1753973763145,1.0656,3781.4,3781.1,4.125]
[1753973763527,0.132,3781.4,3781.1,4.125]
[1753973763954,1e-08,3781.6,3781.2,0.4869]
[1753973764112,1e-08,3781.6,3781.3,4.125]
[1753973764308,1e-08,3781.6,3781.3,4.13351224]
[1753973764649,1e-08,3781.6,3781.5,2.64445325]
[1753973764808,1e-08,3781.6,3781.5,6.76945325]
[1753973765310,1e-08,3781.6,3781.5,4.125]
[1753973766111,0.55,3781.5,3781.3,0.132]
[1753973766324,0.55,3781.5,3781.4,4.125]
[1753973766518,0.132,3781.3,3781.0,0.001]
[1753973766716,4.13623301,3781.1,3781.0,0.001]
[1753973766919,4.13623301,3781.1,3781.0,4.126]
[1753973767152,5.06983301,3781.1,3781.0,0.001]
[1753973767337,5.06983301,3781.1,3781.0,4.126]
[1753973767539,5.84128136,3781.1,3781.0,4.126]
[1753973770768,5.84128136,3781.1,3781.0,0.001]
[1753973771727,4.90768136,3781.1,3781.0,0.001]
[1753973772853,2.26294835,3781.1,3781.0,0.001]
[1753973773360,4.90768136,3781.1,3781.0,0.001]
[1753973773662,5.84128136,3781.1,3781.0,0.001]
[1753973777058,2.26294835,3781.1,3781.0,0.001]
[1753973777274,2.26294835,3781.1,3781.0,0.4904]
[1753973777275,4.13623301,3781.1,3781.0,0.4904]
[1753973777585,4.13623301,3781.1,3781.0,0.001]
[1753973777963,4.60803301,3781.1,3781.0,0.001]
[1753973778150,4.13623301,3781.1,3781.0,0.001]
[1753973778346,4.86009699,3781.1,3781.0,0.001]
[1753973778550,2.21536398,3781.1,3781.0,0.001]
[1753973778750,4.86009699,3781.1,3781.0,0.001]
[1753973779451,5.78969699,3781.1,3781.0,0.001]
[1753973780691,0.682,3781.1,3781.0,0.001]
[1753973780861,0.682,3781.1,3781.0,0.4904]
[1753973781183,0.682,3781.1,3781.0,0.001]
[1753973781386,3.32673301,3781.1,3781.0,0.001]
[1753973781594,3.32673301,3781.1,3781.0,4.126]
[1753973781595,4.25633301,3781.1,3781.0,4.126]
[1753973781767,4.94643153,3781.1,3781.0,4.126]
[1753973782493,5.78399069,3781.1,3781.0,0.001]
[1753973782649,8.75093153,3781.1,3781.0,0.001]
[1753973782856,12.87593153,3781.1,3781.0,1e-08]
[1753973783088,19.49693153,3781.1,3781.0,1e-08]
[1753973784359,15.37193153,3781.1,3781.0,1e-08]
[1753973784552,19.49693153,3781.1,3781.0,1e-08]
[1753973785392,15.37193153,3781.1,3781.0,1e-08]
[1753973785591,11.94633153,3781.1,3781.0,1e-08]
[1753973785772,7.82133153,3781.1,3781.0,1e-08]
[1753973786085,8.29313153,3781.1,3781.0,1e-08]
[1753973786255,8.75093153,3781.1,3781.0,1e-08]
[1753973786785,7.82133153,3781.1,3781.0,1e-08]
[1753973787195,3.82209852,3781.1,3781.0,1e-08]
[1753973787494,3.82209852,3781.1,3781.0,0.93280001]
[1753973787495,0.132,3781.1,3781.0,0.93280001]
[1753973788585,0.132,3781.1,3781.0,3.57760297]
[1753973788774,0.132,3781.1,3781.0,0.93280001]
[1753973789500,0.132,3781.1,3781.0,3.13420297]
[1753973789667,1e-08,3781.6,3781.3,2.64455977]
[1753973789857,1e-08,3781.6,3781.4,7.70230505]
[1753973789858,0.13200001,3781.6,3781.4,7.70230505]
[1753973790064,0.13200001,3781.6,3781.5,2.65296426]
[1753973790283,0.13200001,3781.6,3781.5,0.9328]
[1753973790482,0.13200001,3781.6,3781.5,3.57725325]
[1753973790797,1e-08,3781.6,3781.5,0.4894]
[1753973790970,1e-08,3781.6,3781.4,4.125]
[1753973791299,0.55,3781.4,3781.1,0.4894]
[1753973791496,0.55,3781.4,3781.2,4.125]
[1753973792001,0.55,3781.4,3781.3,0.4894]
[1753973792490,0.55,3781.4,3781.2,4.125]
[1753973792663,0.55,3781.4,3781.3,0.4894]
[1753973792863,0.55,3781.4,3781.3,0.9328]
[1753973793503,0.132,3781.5,3781.4,2.64452319]
[1753973793804,1e-08,3781.6,3781.4,4.34753382]
[1753973793995,1e-08,3781.6,3781.5,0.4894]
[1753973794663,0.55000001,3781.6,3781.2,4.125]
[1753973794867,0.132,3781.5,3781.2,4.6144]
[1753973795166,0.132,3781.5,3781.2,4.125]
[1753973795366,0.132,3781.5,3781.3,0.4894]
[1753973795767,0.132,3781.5,3781.4,4.124]
[1753973796670,0.132,3781.5,3781.4,4.6134]
[1753973799375,2.77645325,3781.5,3781.4,4.6134]
[1753973799619,0.132,3781.5,3781.4,4.6134]
[1753973800079,2.77645325,3781.5,3781.4,4.6134]
[1753973800280,2.77645325,3781.5,3781.4,4.124]
[1753973800477,0.55,3781.4,3781.0,1e-08]
[1753973800785,3.19473301,3781.1,3781.0,1e-08]
[1753973800989,3.19473301,3781.1,3781.0,4.12300001]
[1753973801194,3.66653301,3781.1,3781.0,4.12300001]
[1753973801526,4.93543301,3781.1,3781.0,1e-08]
[1753973801735,5.65859069,3781.1,3781.0,1e-08]
[1753973801876,5.62553153,3781.1,3781.0,1e-08]
[1753973802906,3.88483153,3781.1,3781.0,1e-08]
[1753973803207,0.55,3781.1,3781.0,4.61240001]
[1753973803378,0.132,3781.2,3781.0,4.61240001]
[1753973803829,0.132,3781.2,3781.0,4.12300001]
[1753973804121,0.682,3781.2,3781.1,0.9328]
[1753973805227,1e-08,3781.6,3781.1,1.32451726]
[1753973805433,1e-08,3781.6,3781.1,4.14806638]
[1753973805637,1e-08,3781.6,3781.2,0.9328]
[1753973806213,1e-08,3781.6,3781.3,0.4843]
[1753973806421,1e-08,3781.6,3781.4,4.123]
[1753973806780,2.64440477,3781.6,3781.4,4.6073]
[1753973806982,1e-08,3781.6,3781.4,4.6073]
[1753973807831,1e-08,3781.6,3781.4,4.123]
[1753973807832,2.64445325,3781.5,3781.4,4.123]
[1753973808525,3.19445325,3781.5,3781.4,4.123]
[1753973809181,0.7824,3781.4,3781.0,1e-08]
[1753973809533,3.32673301,3781.1,3781.0,1e-08]
[1753973809877,8.02063301,3781.1,3781.0,1e-08]
[1753973812103,14.64163301,3781.1,3781.0,1e-08]
[1753973812439,18.76463301,3781.1,3781.0,1e-08]
[1753973812641,21.35051667,3781.1,3781.0,1e-08]
[1753973817858,3.96602272,3780.4,3780.3,0.001]
[1753973818085,6.96602272,3780.4,3780.3,0.001]
[1753973818358,8.00952272,3780.4,3780.3,0.001]
[1753973818556,10.14938891,3780.4,3780.3,1e-08]
[1753973819386,10.14938891,3780.4,3778.9,0.4843]
[1753973819387,0.55,3779.2,3778.9,0.4843]
[1753973819647,0.55,3779.0,3778.8,4.123]
[1753973819855,0.132,3778.9,3778.8,4.5643]
[1753973820152,3.32827272,3778.9,3778.8,5.0486]
[1753973820321,0.682,3778.9,3778.8,0.9256]
[1753973821637,2.64560968,3779.9,3778.8,0.9256]